bitfinex/quotes_SOLUSD_20250102
["timestamp","ask_amount","ask_price","bid_price","bid_amount"]
[1735838770992,8.91418208,207.73,207.66,8.91418208]
[1735838771385,8.91418208,207.73,207.67,23.776884]
[1735838772192,9.03967208,207.74,207.67,8.91418208]
[1735838773004,8.0622,207.81,207.73,8.91418208]
[1735838773209,8.0622,207.81,207.76,23.776884]
[1735838773502,8.91418208,207.84,207.78,23.776884]
[1735838773673,8.91418208,207.85,207.78,32.69106608]
[1735838773877,8.0622,207.86,207.8,23.776884]
[1735838774375,1.6069,207.86,207.82,23.776884]
[1735838774792,1.6069,207.86,207.8,8.91418208]
[1735838774981,1.6069,207.86,207.79,32.69106608]
[1735838779617,1.6069,207.86,207.8,8.91418208]
[1735838780511,10.52108208,207.86,207.79,23.776884]
[1735838780716,8.91418208,207.84,207.77,28.91418208]
[1735838781212,8.91418208,207.82,207.75,8.91418208]
[1735838781719,8.91418208,207.82,207.76,23.776884]
[1735838782387,8.91418208,207.81,207.74,8.91418208]
[1735838782900,0.12549,207.8,207.74,8.91418208]
[1735838783098,9.03967208,207.8,207.73,8.91418208]
[1735838783304,8.91418208,207.78,207.71,8.91418208]
[1735838783801,8.91418208,207.78,207.72,23.776884]
[1735838784003,8.91418208,207.78,207.71,8.91418208]
[1735838784004,0.25098,207.79,207.73,8.91418208]
[1735838784209,9.16516208,207.79,207.72,8.91418208]
[1735838784412,8.91418208,207.78,207.72,23.776884]
[1735838784595,9.16516208,207.79,207.72,8.91418208]
[1735838784800,0.25098,207.79,207.73,8.91418208]
[1735838785611,8.91418208,207.8,207.74,23.776884]
[1735838785816,8.91418208,207.81,207.74,32.69106608]
[1735838786003,0.12549,207.8,207.74,23.776884]
[1735838786922,8.91418208,207.8,207.72,8.91418208]
[1735838787321,0.12549,207.79,207.72,8.91418208]
[1735838787525,8.91418208,207.78,207.71,8.91418208]
[1735838788723,8.91418208,207.77,207.7,32.69106608]
[1735838789021,8.91418208,207.78,207.71,23.776884]
[1735838789215,9.03967208,207.77,207.71,23.776884]
[1735838789399,9.03967208,207.77,207.7,8.91418208]
[1735838789827,8.91418208,207.76,207.69,8.91418208]
[1735838790415,8.91418208,207.76,207.68,28.91418208]
[1735838790416,0.12549,207.75,207.68,28.91418208]
[1735838790926,9.03967208,207.74,207.69,23.776884]
[1735838791225,8.91418208,207.73,207.66,8.91418208]
[1735838791422,8.91418208,207.72,207.65,28.91418208]
[1735838791626,8.91418208,207.73,207.66,32.69106608]
[1735838791798,0.12549,207.73,207.68,23.776884]
[1735838792624,9.03967208,207.73,207.68,23.776884]
[1735838792827,8.91418208,207.73,207.66,32.69106608]
[1735838793426,8.91418208,207.74,207.68,23.776884]
[1735838793600,8.91418208,207.75,207.68,23.776884]
[1735838794203,8.91418208,207.75,207.68,8.91418208]
[1735838797131,8.91418208,207.7,207.63,0.72210222]
[1735838797338,8.91418208,207.7,207.63,8.91418208]
[1735838797640,8.91418208,207.7,207.64,23.776884]
[1735838797843,8.91418208,207.72,207.64,32.69106608]
[1735838798022,8.91418208,207.72,207.66,23.776884]
[1735838798541,6.0882,207.74,207.68,8.91418208]
[1735838798729,8.91418208,207.76,207.69,8.91418208]
[1735838798912,8.91418208,207.76,207.7,23.776884]
[1735838800039,8.91418208,207.76,207.69,23.776884]
[1735838800246,8.91418208,207.75,207.69,23.776884]
[1735838800842,8.91418208,207.73,207.66,28.91418208]
[1735838801217,8.91418208,207.72,207.67,23.776884]
[1735838801418,8.91418208,207.72,207.66,20.0]
[1735838801940,8.91418208,207.7,207.6,0.72220405]
[1735838802139,8.91418208,207.69,207.62,8.91418208]
[1735838802636,8.91418208,207.69,207.63,23.776884]
[1735838802847,8.91418208,207.7,207.63,32.69106608]
[1735838803656,0.12549,207.7,207.65,23.776884]
[1735838804334,8.91418208,207.71,207.65,23.776884]
[1735838804643,8.91418208,207.72,207.65,8.91418208]
[1735838804831,8.91418208,207.74,207.66,8.91418208]
[1735838805142,0.12549,207.73,207.67,23.776884]
[1735838805512,9.03967208,207.73,207.67,23.776884]
[1735838805717,9.03967208,207.73,207.65,32.69106608]
[1735838806217,8.91418208,207.72,207.65,32.69106608]
[1735838806640,8.91418208,207.7,207.61,12.76337953]
[1735838806818,8.91418208,207.7,207.62,8.91418208]
[1735838807017,8.91418208,207.69,207.63,23.776884]
[1735838807236,8.91418208,207.7,207.63,23.776884]
[1735838808642,0.12549,207.7,207.65,23.776884]
[1735838808854,8.91418208,207.71,207.65,23.776884]
[1735838809031,0.25098,207.74,207.65,23.776884]
[1735838809224,8.91418208,207.72,207.65,23.776884]
[1735838809627,8.91418208,207.71,207.65,23.776884]
[1735838810046,1.6154,207.7,207.64,8.91418208]
[1735838810554,8.91418208,207.72,207.64,8.91418208]
[1735838811048,8.91418208,207.71,207.64,8.91418208]
[1735838814358,9.03967208,207.73,207.65,23.776884]
[1735838814554,8.91418208,207.73,207.65,24.49905164]
[1735838814755,1.5489,207.75,207.71,23.776884]
[1735838814961,8.91418208,207.77,207.71,23.776884]
[1735838815654,6.0882,207.79,207.71,23.776884]
[1735838815841,0.12549,207.77,207.71,23.776884]
[1735838816860,8.91418208,207.75,207.7,23.776884]
[1735838817030,8.91418208,207.74,207.67,8.91418208]
[1735838817354,0.12549,207.77,207.65,32.69106608]
[1735838817355,8.91418208,207.72,207.65,32.69106608]
[1735838817648,8.91418208,207.72,207.65,8.91418208]
[1735838817957,8.91418208,207.7,207.64,23.776884]
[1735838819059,8.91418208,207.71,207.64,8.91418208]
[1735838821361,9.16516208,207.7,207.63,8.91418208]
[1735838821529,0.12549,207.69,207.63,8.91418208]
[1735838821732,0.12549,207.69,207.64,23.776884]
[1735838822660,1.6666,207.72,207.62,23.776884]
[1735838822661,8.91418208,207.67,207.62,23.776884]
[1735838822833,8.91418208,207.69,207.62,23.776884]
[1735838823038,8.91418208,207.68,207.62,23.776884]
[1735838823733,0.12549,207.67,207.62,23.776884]
[1735838823940,8.91418208,207.66,207.59,28.91418208]
[1735838824143,9.03967208,207.65,207.58,8.91418208]
[1735838824639,8.91418208,207.63,207.56,8.91418208]
[1735838824841,8.91418208,207.62,207.52,42.76929572]
[1735838825066,0.37647,207.66,207.54,8.91418208]
[1735838825235,8.91418208,207.61,207.54,8.91418208]
[1735838825440,8.91418208,207.61,207.55,23.776884]
[1735838825961,0.37647,207.66,207.53,8.91418208]
[1735838825962,8.91418208,207.6,207.53,8.91418208]
[1735838826143,0.12549,207.59,207.53,8.91418208]
[1735838827267,0.25098,207.59,207.53,8.91418208]
[1735838828340,0.25098,207.59,207.53,23.776884]
[1735838829035,0.25098,207.59,207.53,13.94839654]
[1735838829237,13.6533,207.73,207.58,23.776884]
[1735838829552,13.94839654,207.69,207.62,13.94839654]
[1735838829754,0.25098,207.67,207.6,13.94839654]
[1735838829937,0.12549,207.66,207.59,13.94839654]
[1735838830137,14.19937654,207.67,207.59,13.94839654]
[1735838830639,14.19937654,207.67,207.6,23.776884]
[1735838831859,0.12549,207.65,207.59,23.776884]
[1735838832054,14.07388654,207.65,207.59,23.776884]
[1735838832577,13.94839654,207.68,207.6,13.94839654]
[1735838832875,0.12549,207.66,207.61,23.776884]
[1735838834268,13.94839654,207.67,207.61,23.776884]
[1735838836209,14.19937654,207.66,207.59,13.94839654]
[1735838836360,14.19937654,207.66,207.58,33.94839654]
[1735838836563,14.19937654,207.66,207.59,23.776884]
[1735838836776,13.94839654,207.63,207.56,20.0]
[1735838836998,13.94839654,207.63,207.56,33.94839654]
[1735838836999,0.12549,207.63,207.56,33.94839654]
[1735838837278,13.94839654,207.69,207.61,13.94839654]
[1735838837453,13.94839654,207.69,207.63,23.776884]
[1735838838775,13.94839654,207.76,207.68,13.94839654]
[1735838838977,1.5032,207.79,207.71,37.72528054]
[1735838839152,15.45159654,207.79,207.73,23.776884]
[1735838839356,14.07388654,207.77,207.7,23.776884]
[1735838839674,0.12549,207.77,207.69,23.776884]
[1735838839989,13.94839654,207.76,207.69,23.776884]
[1735838840754,13.94839654,207.7,207.63,13.94839654]
[1735838841090,13.94839654,207.69,207.63,23.776884]
[1735838841264,13.94839654,207.68,207.6,20.45229654]
[1735838841587,13.94839654,207.68,207.61,37.72528054]
[1735838843083,13.94839654,207.69,207.63,23.776884]
[1735838843474,13.94839654,207.7,207.63,13.94839654]
[1735838843674,13.94839654,207.71,207.63,13.94839654]
[1735838843983,13.94839654,207.72,207.66,23.776884]
[1735838844289,13.94839654,207.74,207.66,37.72528054]
[1735838844672,13.94839654,207.75,207.68,13.94839654]
[1735838844865,13.94839654,207.76,207.68,13.94839654]
[1735838845787,13.94839654,207.77,207.7,23.776884]
[1735838845963,13.94839654,207.77,207.7,37.72528054]
[1735838846160,13.94839654,207.78,207.7,37.72528054]
[1735838846359,13.94839654,207.77,207.7,37.72528054]
[1735838846579,13.94839654,207.76,207.7,23.776884]
[1735838846754,13.94839654,207.77,207.7,13.94839654]
[1735838847301,13.94839654,207.78,207.7,13.94839654]
[1735838847760,13.94839654,207.78,207.7,37.72528054]
[1735838847962,14.07388654,207.77,207.7,13.94839654]
[1735838848284,14.07388654,207.77,207.71,23.776884]
[1735838848884,14.07388654,207.77,207.7,13.94839654]
[1735838849683,13.94839654,207.77,207.7,13.94839654]
[1735838849903,13.94839654,207.78,207.71,23.776884]
[1735838850199,13.94839654,207.8,207.73,23.776884]
[1735838850987,13.94839654,207.81,207.75,23.776884]
[1735838851665,1.5599,207.84,207.72,0.7219107]
[1735838851666,13.94839654,207.8,207.73,23.776884]
[1735838851986,13.94839654,207.79,207.73,23.776884]
[1735838852492,13.94839654,207.79,207.72,23.776884]
[1735838852990,13.94839654,207.77,207.7,13.94839654]
[1735838853295,13.94839654,207.77,207.69,13.94839654]
[1735838854294,13.94839654,207.77,207.7,23.776884]
[1735838855568,13.94839654,207.77,207.7,13.94839654]
[1735838860598,1.5262,207.9,207.76,13.94839654]
[1735838860785,13.94839654,207.87,207.78,13.94839654]
[1735838860980,13.94839654,207.87,207.79,23.776884]
[1735838861776,0.12549,207.86,207.79,23.776884]
[1735838861975,13.94839654,207.87,207.79,23.776884]
[1735838862175,13.94839654,207.83,207.74,12.75562429]
[1735838862392,13.94839654,207.81,207.74,13.94839654]
[1735838862590,0.12549,207.8,207.72,19.95009654]
[1735838862787,13.94839654,207.79,207.73,23.776884]
[1735838863187,13.94839654,207.8,207.73,23.776884]
[1735838864278,13.94839654,207.79,207.73,23.776884]
[1735838864478,13.94839654,207.79,207.7,13.94839654]
[1735838864997,13.94839654,207.77,207.7,13.94839654]
[1735838865379,13.94839654,207.77,207.69,13.94839654]
[1735838865573,13.94839654,207.77,207.7,13.94839654]
[1735838866501,13.94839654,207.77,207.71,23.776884]
[1735838867381,13.94839654,207.76,207.7,23.776884]
[1735838868198,0.12549,207.77,207.7,23.776884]
[1735838868885,0.25098,207.77,207.7,23.776884]
[1735838869089,0.25098,207.8,207.63,8.0621]
[1735838869090,13.94839654,207.72,207.63,8.0621]
[1735838869296,13.94839654,207.7,207.6,42.0423]
[1735838869495,13.94839654,207.71,207.64,13.94839654]
[1735838869692,13.94839654,207.73,207.64,13.94839654]
[1735838869890,13.94839654,207.74,207.67,37.72528054]
[1735838870119,13.94839654,207.78,207.71,23.776884]
[1735838872814,0.12549,207.79,207.73,23.776884]
[1735838873123,13.94839654,207.82,207.75,23.776884]
[1735838873761,0.12549,207.81,207.75,23.776884]
[1735838874312,0.12549,207.79,207.72,13.94839654]
[1735838875509,13.94839654,207.78,207.71,23.776884]
[1735838876046,13.94839654,207.76,207.68,13.94839654]
[1735838876714,13.94839654,207.76,207.69,23.776884]
[1735838877036,0.12549,207.77,207.71,23.776884]
[1735838878441,13.94839654,207.76,207.68,37.72528054]
[1735838880235,13.94839654,207.76,207.69,0.72201138]
[1735838880625,13.94839654,207.76,207.68,37.72528054]
[1735838881945,13.94839654,207.74,207.66,13.94839654]
[1735838882136,13.94839654,207.74,207.67,23.776884]
[1735838882821,13.94839654,207.75,207.67,37.72528054]
[1735838883015,13.94839654,207.75,207.7,23.776884]
[1735838883416,1.6406,207.76,207.7,23.776884]
[1735838883847,13.94839654,207.77,207.7,13.94839654]
[1735838884721,13.94839654,207.77,207.69,37.72528054]
[1735838885444,13.94839654,207.75,207.69,37.72528054]
[1735838885947,13.94839654,207.75,207.67,13.94839654]
[1735838886132,13.94839654,207.74,207.67,23.776884]
[1735838886636,13.94839654,207.72,207.66,13.94839654]
[1735838886835,13.94839654,207.7,207.62,15.56779654]
[1735838887036,13.94839654,207.7,207.63,23.776884]
[1735838887253,13.94839654,207.7,207.62,13.94839654]
[1735838887440,13.94839654,207.69,207.63,23.776884]
[1735838887642,1.593,207.73,207.59,12.0427]
[1735838887643,13.94839654,207.67,207.59,13.94839654]
[1735838888553,13.94839654,207.66,207.59,13.94839654]
[1735838888722,13.94839654,207.67,207.6,23.776884]
[1735838889120,13.94839654,207.67,207.6,37.72528054]
[1735838889325,13.94839654,207.68,207.62,23.776884]
[1735838890458,13.94839654,207.67,207.6,37.72528054]
[1735838890629,0.12549,207.67,207.62,23.776884]
[1735838890824,13.94839654,207.66,207.58,13.94839654]
[1735838891031,13.94839654,207.65,207.57,13.94839654]
[1735838891753,13.94839654,207.64,207.57,13.94839654]
[1735838891938,13.94839654,207.64,207.58,23.776884]
[1735838892262,13.94839654,207.67,207.6,23.776884]
[1735838893353,13.94839654,207.68,207.61,37.72528054]
[1735838893553,14.07388654,207.69,207.61,37.72528054]
[1735838893940,13.94839654,207.69,207.63,23.776884]
[1735838894349,13.94839654,207.7,207.63,13.94839654]
[1735838894858,0.12549,207.7,207.63,13.94839654]
[1735838895026,13.94839654,207.72,207.65,37.72528054]
[1735838895232,15.54139654,207.73,207.65,37.72528054]
[1735838895745,13.94839654,207.73,207.67,23.776884]
[1735838896344,13.94839654,207.73,207.65,13.94839654]
[1735838896544,13.94839654,207.73,207.65,37.72528054]
[1735838897071,13.94839654,207.73,207.66,23.776884]
[1735838897559,13.94839654,207.73,207.66,37.72528054]
[1735838900341,13.94839654,207.73,207.65,13.94839654]
[1735838900537,13.94839654,207.73,207.66,23.776884]
[1735838900858,13.94839654,207.75,207.67,13.94839654]
[1735838901241,0.37647,207.77,207.67,13.94839654]
[1735838901442,13.94839654,207.74,207.68,23.776884]
[1735838902462,0.12549,207.73,207.65,14.67055724]
[1735838902636,0.12549,207.73,207.65,13.94839654]
[1735838902830,0.12549,207.73,207.62,2.37643453]
[1735838902831,13.94839654,207.72,207.64,13.94839654]
[1735838903157,13.94839654,207.72,207.65,23.776884]
[1735838903862,13.94839654,207.72,207.65,13.94839654]
[1735838904360,13.94839654,207.72,207.65,23.776884]
[1735838904862,13.94839654,207.71,207.65,23.776884]
[1735838907341,0.12549,207.71,207.65,13.94839654]
[1735838907574,13.94839654,207.73,207.67,23.776884]
[1735838907782,13.94839654,207.75,207.67,13.94839654]
[1735838908078,13.94839654,207.74,207.67,13.94839654]
[1735838908574,13.94839654,207.75,207.67,13.94839654]
[1735838909949,13.94839654,207.74,207.66,13.94839654]
[1735838910162,13.94839654,207.75,207.67,13.94839654]
[1735838910852,0.25098,207.74,207.67,13.94839654]
[1735838911045,13.94839654,207.72,207.65,23.776884]
[1735838911551,12.0335,207.76,207.65,23.776884]
[1735838911552,13.94839654,207.73,207.65,13.94839654]
[1735838911759,0.12549,207.72,207.65,13.94839654]
[1735838914674,13.94839654,207.73,207.67,13.94839654]
[1735838914976,13.94839654,207.75,207.68,23.776884]
[1735838915871,14.32486654,207.77,207.68,23.776884]
[1735838916186,13.94839654,207.75,207.68,23.776884]
[1735838918291,8.91376551,207.75,207.68,23.776884]
[1735838918465,0.37647,207.77,207.68,23.776884]
[1735838918805,0.12549,207.75,207.68,23.776884]
[1735838919386,8.91376551,207.74,207.68,23.776884]
[1735838921084,0.12549,207.71,207.64,8.91376551]
[1735838922187,0.12549,207.71,207.65,23.776884]
[1735838923088,8.91376551,207.72,207.65,23.776884]
[1735838923258,8.91376551,207.74,207.66,9.63598709]
[1735838923458,8.91376551,207.76,207.68,8.91376551]
[1735838923793,8.91376551,207.74,207.66,9.63598709]
[1735838926193,0.12549,207.73,207.66,8.91376551]
[1735838926368,0.25098,207.73,207.66,8.91376551]
[1735838926576,0.25098,207.73,207.64,8.91376551]
[1735838927195,0.25098,207.73,207.65,23.776884]
[1735838928294,8.91376551,207.71,207.64,23.776884]
[1735838928471,8.91376551,207.71,207.64,8.91376551]
[1735838928671,8.91376551,207.72,207.64,8.91376551]
[1735838928893,8.91376551,207.72,207.65,8.91376551]
[1735838929086,8.91376551,207.72,207.67,23.776884]
[1735838929595,8.91376551,207.72,207.66,23.776884]
[1735838929802,8.91376551,207.76,207.67,8.91376551]
[1735838930206,0.12549,207.75,207.67,8.91376551]
[1735838930406,8.91376551,207.76,207.67,8.91376551]
[1735838931197,0.12549,207.75,207.67,8.91376551]
[1735838934806,0.12549,207.73,207.65,52.69064951]
[1735838934978,0.12549,207.73,207.65,32.69064951]
[1735838936313,0.25098,207.71,207.62,1.6543]
[1735838936605,0.25098,207.71,207.64,23.776884]
[1735838937188,8.91376551,207.7,207.63,23.776884]
[1735838937607,8.91376551,207.72,207.64,8.91376551]
[1735838940314,0.25098,207.69,207.61,6.0]
[1735838940528,0.25098,207.69,207.61,8.91376551]
[1735838941189,0.25098,207.69,207.62,23.776884]
[1735838941717,8.91376551,207.68,207.62,23.776884]
[1735838942289,8.91376551,207.66,207.59,8.91376551]
[1735838942501,8.91376551,207.64,207.57,7.56726706]
[1735838943420,8.91376551,207.64,207.58,23.776884]
[1735838943609,0.12549,207.61,207.56,8.91376551]
[1735838944301,0.25098,207.62,207.56,8.91376551]
[1735838944611,0.12549,207.62,207.57,23.776884]
[1735838944821,8.91376551,207.64,207.57,23.776884]
[1735838946927,8.91376551,207.66,207.58,8.91376551]
[1735838947422,0.12549,207.65,207.58,8.91376551]
[1735838947626,8.91376551,207.64,207.56,28.91376551]
[1735838948136,8.91376551,207.62,207.54,9.63623196]
[1735838948427,8.91376551,207.62,207.52,23.776884]
[1735838948626,8.91376551,207.62,207.55,8.91376551]
[1735838949130,9.16474551,207.63,207.55,8.91376551]
[1735838949320,9.16474551,207.63,207.53,0.72257898]
[1735838949321,0.25098,207.61,207.53,0.72257898]
[1735838949627,0.25098,207.61,207.53,8.91376551]
[1735838950123,0.25098,207.61,207.54,23.776884]
[1735838950331,8.1059,207.64,207.5,12.77063982]
[1735838950332,0.12549,207.58,207.5,0.72263982]
[1735838950624,0.12549,207.55,207.48,8.91376551]
[1735838951124,8.91376551,207.55,207.48,8.91376551]
[1735838951425,0.12549,207.54,207.48,8.91376551]
[1735838951632,9.03925551,207.54,207.47,8.91376551]
[1735838951809,0.12549,207.54,207.48,32.69064951]
[1735838952427,0.12549,207.54,207.48,13.95392863]
[1735838953138,0.12549,207.54,207.47,37.73081263]
[1735838953647,0.12549,207.54,207.48,13.95392863]
[1735838953852,14.20490863,207.55,207.48,20.0]
[1735838954439,14.20490863,207.55,207.47,37.73081263]
[1735838954646,13.95392863,207.53,207.46,33.95392863]
[1735838954934,0.12549,207.52,207.46,33.95392863]
[1735838955544,0.12549,207.52,207.47,23.776884]
[1735838956043,13.95392863,207.52,207.47,23.776884]
[1735838956243,0.12549,207.51,207.44,13.95392863]
[1735838956426,14.07941863,207.51,207.43,13.95392863]
[1735838956626,13.95392863,207.49,207.41,0.7228972]
[1735838956815,13.95392863,207.47,207.38,8.29023176]
[1735838957013,13.95392863,207.47,207.4,23.776884]
[1735838957248,13.95392863,207.47,207.4,20.0]
[1735838957249,0.12549,207.46,207.4,20.0]
[1735838957431,0.12549,207.46,207.41,13.95392863]
[1735838957959,0.25098,207.47,207.4,33.95392863]
[1735838958124,0.25098,207.47,207.41,23.776884]
[1735838958647,14.20490863,207.47,207.41,23.776884]
[1735838958820,14.20490863,207.47,207.4,20.0]
[1735838959230,0.12549,207.45,207.39,13.95392863]
[1735838959443,0.12549,207.43,207.36,13.95392863]
[1735838959627,0.12549,207.43,207.34,12.78049279]
[1735838959628,0.12549,207.43,207.38,37.73081263]
[1735838960019,13.95392863,207.46,207.4,23.776884]
[1735838960221,0.12549,207.44,207.37,33.95392863]
[1735838960443,14.07941863,207.44,207.37,20.0]
[1735838960633,14.07941863,207.44,207.37,33.95392863]
[1735838961134,14.07941863,207.44,207.38,23.776884]
[1735838961549,14.07941863,207.46,207.38,13.95392863]
[1735838961752,0.12549,207.46,207.4,23.776884]
[1735838962635,0.25098,207.46,207.4,13.95392863]
[1735838963159,14.20490863,207.46,207.39,13.95392863]
[1735838963448,0.37647,207.43,207.37,13.95392863]
[1735838963652,0.37647,207.43,207.34,20.0]
[1735838963653,14.33039863,207.41,207.34,13.95392863]
[1735838963824,14.33039863,207.41,207.33,13.95392863]
[1735838964354,0.25098,207.39,207.33,13.95392863]
[1735838964653,14.20490863,207.39,207.32,13.95392863]
[1735838964823,13.95392863,207.39,207.32,13.95392863]
[1735838965028,13.95392863,207.42,207.35,13.95392863]
[1735838965562,0.37647,207.41,207.34,13.95392863]
[1735838966248,0.37647,207.39,207.32,13.95392863]
[1735838966451,14.33039863,207.37,207.3,13.95392863]
[1735838967154,13.95392863,207.31,207.28,20.0]
[1735838967326,13.95392863,207.32,207.29,23.776884]
[1735838967935,13.95392863,207.31,207.29,23.776884]
[1735838968131,13.95392863,207.31,207.27,0.72345423]
[1735838968336,13.95392863,207.28,207.24,12.78627588]
[1735838968758,13.95392863,207.26,207.24,0.72347588]
[1735838968926,13.95392863,207.25,207.22,8.1595]
[1735838969123,13.95392863,207.27,207.22,20.2234]
[1735838969323,13.95392863,207.3,207.25,20.0]
[1735838969527,0.37647,207.34,207.24,23.776884]
[1735838969757,13.95392863,207.27,207.24,23.776884]
[1735838969927,13.95392863,207.27,207.23,24.50045101]
[1735838970133,13.95392863,207.27,207.26,23.776884]
[1735838970955,13.95392863,207.28,207.26,23.776884]
[1735838971363,13.95392863,207.27,207.26,23.776884]
[1735838971854,13.95392863,207.27,207.23,0.72356701]
[1735838972043,13.95392863,207.26,207.2,0.72362774]
[1735838972251,13.95392863,207.26,207.23,23.776884]
[1735838972556,13.95392863,207.26,207.25,73.776884]
[1735838972856,13.95392863,207.27,207.25,73.776884]
[1735838973155,13.95392863,207.27,207.26,23.776884]
[1735838974247,8.95054274,207.27,207.26,23.776884]
[1735838978536,8.95054274,207.28,207.26,23.776884]
[1735838979160,8.95054274,207.29,207.27,0.72345541]
[1735838979372,1.6344,207.35,207.28,23.776884]
[1735838979733,1.5795,207.4,207.32,23.776884]
[1735838980151,1.5795,207.4,207.34,23.776884]
[1735838980833,8.95054274,207.35,207.29,12.78374834]
[1735838981063,8.95054274,207.3,207.27,30.0]
[1735838981352,0.25098,207.39,207.29,43.776884]
[1735838981743,0.25098,207.39,207.29,20.0]
[1735838982135,8.95054274,207.3,207.29,43.776884]
[1735838982871,8.95054274,207.31,207.3,23.776884]
[1735838983169,8.95054274,207.31,207.29,20.0]
[1735838983467,8.95054274,207.31,207.3,43.776884]
[1735838983875,1.5795,207.4,207.32,23.776884]
[1735838984037,8.95054274,207.39,207.36,23.776884]
[1735838984239,13.96990384,207.4,207.36,23.776884]
[1735838984455,13.96990384,207.39,207.36,23.776884]
[1735838984652,13.96990384,207.4,207.38,23.776884]
[1735838985073,13.96990384,207.41,207.4,43.776884]
[1735838985252,13.96990384,207.42,207.41,23.776884]
[1735838985582,13.96990384,207.42,207.4,20.0]
[1735838986078,13.96990384,207.41,207.4,20.0]
[1735838986656,13.96990384,207.42,207.4,20.0]
[1735838986866,13.96990384,207.41,207.4,20.0]
[1735838987751,13.96990384,207.42,207.41,20.0]
[1735838987954,13.96990384,207.43,207.41,20.0]
[1735838988263,13.96990384,207.44,207.43,23.776884]
[1735838988778,13.96990384,207.45,207.43,23.776884]
[1735838989377,13.96990384,207.45,207.43,20.0]
[1735838989755,15.59790384,207.5,207.43,20.0]
[1735838989756,13.96990384,207.46,207.43,20.0]
[1735838990673,13.96990384,207.45,207.43,20.0]
[1735838990882,13.96990384,207.46,207.43,20.0]
[1735838991471,13.96990384,207.49,207.44,23.776884]
[1735838991683,1.5735,207.55,207.44,336.49981439]
[1735838991684,13.96990384,207.5,207.44,336.49981439]
[1735838991891,13.96990384,207.51,207.44,349.74678784]
[1735838992373,13.96990384,207.51,207.44,361.79838784]
[1735838992969,13.96990384,207.51,207.46,23.776884]
[1735838993476,13.96990384,207.5,207.46,23.776884]
[1735838994069,13.96990384,207.51,207.47,0.72277891]
[1735838994272,13.96990384,207.5,207.48,23.776884]
[1735838994665,13.96990384,207.51,207.48,23.776884]
[1735838995269,13.96990384,207.51,207.46,23.776884]
[1735838995479,13.96990384,207.51,207.48,23.776884]
[1735838995686,13.96990384,207.53,207.48,23.776884]
[1735838995984,13.96990384,207.54,207.5,23.776884]
[1735838996487,13.96990384,207.53,207.5,23.776884]
[1735838996789,13.96990384,207.54,207.5,23.776884]
[1735838997792,13.96990384,207.54,207.5,335.776884]
[1735838999476,13.96990384,207.55,207.5,335.776884]
[1735838999673,13.96990384,207.54,207.5,335.776884]
[1735839000390,13.96990384,207.51,207.5,335.776884]
[1735839000565,13.96990384,207.51,207.46,12.0499]
[1735839000870,1.5011,207.57,207.46,0.72274919]
[1735839000871,13.96990384,207.48,207.46,0.72274919]
[1735839001070,0.37647,207.56,207.43,12.0522]
[1735839001275,13.96990384,207.44,207.42,0.72278768]
[1735839001674,13.96990384,207.44,207.42,20.0]
[1735839001872,6.4287,207.54,207.38,30.72296982]
[1735839001873,13.96990384,207.43,207.38,30.72296982]
[1735839002165,13.96990384,207.41,207.38,30.0]
[1735839002384,13.96990384,207.39,207.36,0.72305649]
[1735839002897,13.96990384,207.41,207.36,0.72305649]
[1735839003095,13.96990384,207.38,207.36,20.0]
[1735839003271,13.96990384,207.38,207.33,30.7232026]
[1735839003597,13.96990384,207.37,207.35,20.0]
[1735839003909,13.96990384,207.38,207.35,20.0]
[1735839004085,13.96990384,207.39,207.36,23.776884]
[1735839004470,13.96990384,207.41,207.38,23.776884]
[1735839004699,13.96990384,207.45,207.4,23.776884]
[1735839004869,13.96990384,207.46,207.42,23.776884]
[1735839005071,13.96990384,207.45,207.42,23.776884]
[1735839005479,13.96990384,207.44,207.42,23.776884]
[1735839005722,13.96990384,207.43,207.38,30.72297221]
[1735839006386,13.96990384,207.39,207.34,30.72304337]
[1735839006588,13.96990384,207.38,207.34,0.72304337]
[1735839006799,13.96990384,207.37,207.31,30.72323018]
[1735839007008,13.96990384,207.38,207.34,20.0]
[1735839007189,13.96990384,207.38,207.36,23.776884]
[1735839007721,13.96990384,207.37,207.31,30.0]
[1735839007880,13.96990384,207.36,207.31,30.72327332]
[1735839008283,6.3509,207.43,207.31,0.72327332]
[1735839008284,13.96990384,207.35,207.31,0.72327332]
[1735839008509,13.96990384,207.33,207.31,0.72327332]
[1735839008708,13.96990384,207.33,207.3,23.776884]
[1735839009089,13.96990384,207.33,207.29,0.72336017]
[1735839009405,13.96990384,207.33,207.27,23.776884]